Cogmind - Beta 15 @@@ ROGUE MODE // 2025.10.04 @ 15:28:29 Player: dare evans Result: Destroyed by H-66 Slayer with Gauss Rifle Performance ------------- Evolutions (5) 2500 Regions Visited (6) 1200 Robots Destroyed (19) 95 Value Destroyed (497) 497 Prototype IDs (0) 0 Alien Tech Used (0) 0 Bonus (-11) -11 TOTAL SCORE: 4281 Bonus ------- Friendly Fire -11 Cogmind --------- Core Integrity 0/1000 Matter 300/300 Energy 98/100 System Corruption 3% Temperature Cool (0) Movement Core (50) Location -5/Upper Caves Parts ------- > --- POWER (2) -------- (None) > --- PROPULSION (4) --- (None) > --- UTILITY (8) ------ (None) > --- WEAPON (3) ------- (None) > --- INVENTORY (5) ---- Advanced Heat Sink Large Matter Pod (150) Shock Absorption System Tesla Rifle Enhanced Gauss Cannon Peak State ------------ > --- POWER ------------ Subdweller Power Source Improved Deuterium Engine > --- PROPULSION ------- Titanium Leg Myomer Leg > --- UTILITY ---------- Coolant Injector Medium Storage Unit Large Matter Pod IFF Parser Improved Light Armor Plating Point Defense System > --- WEAPON ----------- Medium Laser Light Assault Rifle Light Assault Rifle > --- INVENTORY -------- Subdweller Power Source Wheel Medium Laser Medium Laser [Rating: 39] Favorites ----------- Power Improved Deuterium Engine Engine Improved Deuterium Engine Propulsion Light Treads Treads Light Treads Leg Myomer Leg Wheel Subdweller Monowheel Hover Unit Improved Gravmag System Flight Unit VTOL Module Utility Medium Storage Unit Device Coolant Injector Storage Medium Storage Unit Protection Improved Light Armor Plating Weapon Light Assault Rifle Energy Gun Medium Laser Ballistic Gun Light Assault Rifle Build | -11 -10 -10 -7 -5 -5 -5 ------- Run | Yrd Mat Sub Scr Fac Upp Upp Slots Evolved 10 | . . . . 10 . . Power 1 | . . . . 1 . . Propulsion 2 | . . . . 2 . . Utility 6 | . . . . 6 . . Weapon 1 | . . . . 1 . . Parts Attached 30 | 7 4 3 5 11 . . Power 5 | 1 1 1 1 1 . . Engine 5 | 1 1 1 1 1 . . Core . | . . . . . . . Reactor . | . . . . . . . Propulsion 10 | 2 . 2 4 2 . . Treads 2 | 2 . . . . . . Leg 2 | . . . 2 . . . Wheel 4 | . . 2 2 . . . Hover 1 | . . . . 1 . . Flight 1 | . . . . 1 . . Utility 8 | 2 2 . . 4 . . Device 4 | 1 . . . 3 . . Storage 3 | 1 2 . . . . . Processor . | . . . . . . . Hackware . | . . . . . . . Protection 1 | . . . . 1 . . Artifact . | . . . . . . . Weapon 7 | 2 1 . . 4 . . Energy Gun 4 | . . . . 4 . . Energy Cannon . | . . . . . . . Ballistic Gun 3 | 2 1 . . . . . Ballistic Cannon . | . . . . . . . Launcher . | . . . . . . . Special Weapon . | . . . . . . . Impact Weapon . | . . . . . . . Slashing Weapon . | . . . . . . . Piercing Weapon . | . . . . . . . Special Melee Weapon . | . . . . . . . Unidentified Prototypes . | . . . . . . . Parts Lost 17 | . . 1 . 10 6 . Power 2 | . . . . 2 . . Propulsion 5 | . . . . 3 2 . Utility 3 | . . . . 2 1 . Weapon 7 | . . 1 . 3 3 . Highest Loss Streak 7 | . . 1 . 7 6 . To Critical Strikes . | . . . . . . . Average Backups 6 | 3 7 8 8 3 4 5 Power 1 | . 1 1 2 . . . Propulsion 1 | 1 2 3 1 . . . Utility 1 | . . . 1 1 3 3 Weapon 2 | . 2 3 3 1 1 2 Tool/Special . | . . . . . . . Unused Backups 10 | . 1 3 2 . . 4 Power 1 | . . 1 . . . . Propulsion 3 | . . 2 1 . . . Utility 3 | . . . 1 . . 2 Weapon 3 | . 1 . . . . 2 Tool/Special . | . . . . . . . Average Slot Usage (%) 74 | . 100 99 100 57 6 . Engine 10 | . 14 14 14 6 . . Treads 7 | . 28 15 . . . . Leg 3 | . . . 8 3 . . Wheel 8 | . . 12 19 2 . . Device 4 | . 10 . . 11 1 . Storage 17 | . 17 28 28 8 . . Energy Gun 2 | . . . . 12 1 . Ballistic Gun 18 | . 28 27 28 2 . . Peak Build Rating 39 | 7 8 12 20 39 29 2 Average Rating 12 | 4 7 9 14 28 4 2 On Entrance 11 | . 7 8 12 19 29 2 Naked Turns 540 | . . . . . 424 116 Heaviest Build 39 | 14 21 21 25 39 27 . Greatest Support 42 | 40 40 40 42 42 10 3 Greatest Overweight (x) 8 | . . . 1 6 8 . Average Overweight (x) . | . . . . 1 . . Largest Inventory Capacity 10 | 8 10 10 10 10 10 5 Average Capacity 8 | 6 9 10 10 10 5 5 Most Carried 10 | 5 10 10 10 7 5 5 Average Carried 7 | 3 7 9 9 3 4 5 Final Capacity 10 | 8 10 10 10 10 5 5 Final Carried 10 | 4 10 10 8 4 5 5 Class Distribution -------------------- 85% | Mutant 12% | Tank Dominant Class ---------------- Mutant | -10/Materials Mutant | -10/Subcaves Mutant | -7/Scraptown Tank | -5/Factory Mutant | -5/Upper Caves Mutant | -5/Upper Caves Resources | -11 -10 -10 -7 -5 -5 -5 ----------- Run | Yrd Mat Sub Scr Fac Upp Upp Matter Collected 887 | 278 174 231 55 147 2 . Remotely 184 | 10 174 . . . . . Salvage Created 645 | 95 276 . . 274 . . Parts 27 | 3 14 . . 10 . . Haulers Intercepted . | . . . . . . . Recyclers Shooed . | . . . . . . . Parts Field Recycled . | . . . . . . . Retrieved Matter . | . . . . . . . Parts Self-Destructed 3 | . . 3 . . . . Prevented . | . . . . . . . Kills | -11 -10 -10 -7 -5 -5 -5 ------- Run | Yrd Mat Sub Scr Fac Upp Upp Combat Hostiles Destroyed 16 | . 7 . . 9 . . Guns 13 | . 7 . . 6 . . Classes Destroyed 5 | 1 3 . . 1 . . Recycler 1 | 1 . . . . . . Watcher 2 | . 2 . . . . . Swarmer 11 | . 3 . . 8 . . Grunt 4 | . 4 . . . . . Sentry 1 | . . . . 1 . . Best Kill Streak 6 | 1 2 . . 6 . . Combat Bots Only 6 | . 2 . . 6 . . Max Kills in Single Turn 1 | 1 1 . . 1 . . Gunslinging . | . . . . . . . Exploded . | . . . . . . . Melee . | . . . . . . . Uniques/NPCs Destroyed . | . . . . . . . Combat | -11 -10 -10 -7 -5 -5 -5 -------- Run | Yrd Mat Sub Scr Fac Upp Upp Hostile Shots Fired 231 | . 40 12 . 113 59 7 Missed 73 | . 12 4 . 35 20 2 Hits 158 | . 28 8 . 78 39 5 Melee 2 | . . . . . 2 . Projectile 156 | . 28 8 . 78 37 5 Critical Strikes 6 | . . 1 . 1 4 . Damage Taken 2672 | . 316 173 . 1252 863 68 Core 1072 | . 18 41 . 233 712 68 Absorbed by Shields . | . . . . . . . Core Remaining (%) 88 | 100 . . 76 . . . Volleys Fired 79 | 2 36 6 . 35 . . Largest 3 | 2 2 2 . 3 . . Hottest 181 | 40 40 40 . 181 . . Shots Fired 164 | 4 72 12 . 76 . . Gun 164 | 4 72 12 . 76 . . Cannon . | . . . . . . . Launcher . | . . . . . . . Special . | . . . . . . . Kinetic 103 | 4 72 12 . 15 . . Thermal 61 | . . . . 61 . . Explosive . | . . . . . . . Electromagnetic . | . . . . . . . Robot Hit Streak 13 | 2 13 6 . 12 . . Robot Miss Streak 4 | 1 4 1 . 3 . . Penetration Max . | . . . . . . . Secondary Targets . | . . . . . . . Shots Hit Robots 107 | 2 45 8 . 52 . . Core Hits 39 | 2 15 4 . 18 . . Critical Kills . | . . . . . . . Critical Parts Destroyed 1 | . 1 . . . . . Critical Strikes 7 | . 1 . . 6 . . Burn 6 | . . . . 6 . . Destroy 1 | . 1 . . . . . Melee Attacks . | . . . . . . . Impact . | . . . . . . . Slashing . | . . . . . . . Piercing . | . . . . . . . Sneak Attacks . | . . . . . . . Combat Hostiles . | . . . . . . . Follow-up Attacks . | . . . . . . . Damage Inflicted 1216 | 22 506 78 . 610 . . Guns 1216 | 22 506 78 . 610 . . Cannons . | . . . . . . . Explosions . | . . . . . . . Melee . | . . . . . . . Ramming . | . . . . . . . Kinetic 696 | 22 506 78 . 90 . . Thermal 520 | . . . . 520 . . Explosive . | . . . . . . . Electromagnetic . | . . . . . . . Impact . | . . . . . . . Slashing . | . . . . . . . Piercing . | . . . . . . . Highest Corruption 3 | . 2 2 2 2 3 3 Average Corruption 2 | . 2 2 2 2 3 3 Corruption Purged . | . . . . . . . Corruption Blocked . | . . . . . . . Effects 24 | . 2 2 12 . 6 2 Message Errors 4 | . . . 2 . 1 1 Matter Fused 7 | . 1 1 5 . . . Heat Flow Errors 4 | . . 1 1 . 2 . Energy Discharges 5 | . 1 . 2 . 1 1 Data Loss (minor) 1 | . . . 1 . . . Data Loss (major) 2 | . . . 1 . 1 . Alerts 1 | . . . . . 1 . Overload Shots . | . . . . . . . Overflow Damage . | . . . . . . . Projectiles . | . . . . . . . Explosions . | . . . . . . . Melee . | . . . . . . . Knockbacks . | . . . . . . . Impact . | . . . . . . . Kinetic . | . . . . . . . Secondary . | . . . . . . . Self-Inflicted Damage . | . . . . . . . Shots . | . . . . . . . Rammed . | . . . . . . . Targets Rammed . | . . . . . . . Kicked . | . . . . . . . Crushed . | . . . . . . . Highest Temperature 282 | . 18 223 183 194 282 . Average Temperature 70 | . 8 123 93 73 123 . Received Heat Transfer 667 | . 132 42 . 27 466 . Siege Activations . | . . . . . . . Martial Activations . | . . . . . . . Shielding Activations . | . . . . . . . Robots Disrupted . | . . . . . . . Combat Hostiles . | . . . . . . . Robots Corrupted . | . . . . . . . Combat Hostiles . | . . . . . . . Parts Fried . | . . . . . . . Impact Corruptions . | . . . . . . . Robots Melted 3 | . . . . 3 . . Combat Hostiles 3 | . . . . 3 . . Parts Melted 4 | . . . . 4 . . Heat Transferred 1961 | . . . . 1961 . . Parts Sabotaged . | . . . . . . . Parts Stolen . | . . . . . . . Parts Stripped . | . . . . . . . Power Chain Reactions . | . . . . . . . Alert | -11 -10 -10 -7 -5 -5 -5 ------- Run | Yrd Mat Sub Scr Fac Upp Upp Maximum Alert Level . | . . . . . . . Low Security (%) 100 | 100 100 . . 100 . . Level 1 . | . . . . . . . Level 2 . | . . . . . . . Level 3 . | . . . . . . . Level 4 . | . . . . . . . Level 5 . | . . . . . . . High Security . | . . . . . . . Max Security . | . . . . . . . Peak Influence 77 | 5 77 . . 70 . . Initial . | . . . . . . . Average 21 | . 21 . . 24 . . Influence Increases 811 | 5 213 . . 248 345 . Destroy 0b10 Robot/C 320 | . 140 . . 180 . . Destroy 0b10 Robot/NC 15 | 5 10 . . . . . Destroy Leader 64 | . 44 . . 20 . . Successful Hack 22 | . 4 . . 18 . . Lose Combat Pursuer 390 | . 15 . . 30 345 . Influence Decreases 690 | 5 213 . . 248 132 92 Entered New Map 42 | . . . . . . 42 Time Decay 573 | 5 213 . . 173 132 50 Lost Part 75 | . . . . 75 . . Squads Dispatched 4 | . 2 . . 2 . . Investigation 2 | . 1 . . 1 . . Extermination 1 | . . . . 1 . . Reinforcement 1 | . 1 . . . . . Assault . | . . . . . . . Garrison . | . . . . . . . Intercept . | . . . . . . . Searches Triggered . | . . . . . . . Construction Impeded . | . . . . . . . Haulers Reinforced . | . . . . . . . Active Scanning Responses . | . . . . . . . Cargo Convoy Interrupts . | . . . . . . . Stealth | -11 -10 -10 -7 -5 -5 -5 --------- Run | Yrd Mat Sub Scr Fac Upp Upp Distress Signals 1 | . 1 . . . . . Communications Jammed . | . . . . . . . Distress Signals . | . . . . . . . Times Spotted 59 | . 11 7 . 15 24 2 Peak Tracking Total 11 | . 3 6 . 7 11 1 Tactical Retreats 12 | . 1 . . 2 9 . Traps | -11 -10 -10 -7 -5 -5 -5 ------- Run | Yrd Mat Sub Scr Fac Upp Upp Traps Triggered 2 | . 2 . . . . . Indirectly . | . . . . . . . Trap Hack Attempts . | . . . . . . . Triggered . | . . . . . . . Disarmed . | . . . . . . . Reprogrammed . | . . . . . . . Reused . | . . . . . . . Traps Extracted . | . . . . . . . Installed . | . . . . . . . Triggered . | . . . . . . . Machines | -11 -10 -10 -7 -5 -5 -5 ---------- Run | Yrd Mat Sub Scr Fac Upp Upp Machines Disabled . | . . . . . . . Max in Single Turn . | . . . . . . . Machines Repaired . | . . . . . . . Machines Dismantled . | . . . . . . . Machines Sabotaged . | . . . . . . . Overloaded Fab Kills . | . . . . . . . Hacking | -11 -10 -10 -7 -5 -5 -5 --------- Run | Yrd Mat Sub Scr Fac Upp Upp Machines Accessed 4 | . 1 . 2 1 . . Terminals 2 | . 1 . . 1 . . Fabricators . | . . . . . . . Repair Stations . | . . . . . . . Recycling Units . | . . . . . . . Scanalyzers . | . . . . . . . Garrison Access . | . . . . . . . Total Hacks 24 | . 2 . 19 3 . . Successful 22 | . 2 . 19 1 . . Failed 2 | . . . . 2 . . Catastrophic . | . . . . . . . Database Lockouts . | . . . . . . . Manual . | . . . . . . . Terminals 5 | . 2 . . 3 . . Fabricators . | . . . . . . . Repair Stations . | . . . . . . . Recycling Units . | . . . . . . . Scanalyzers . | . . . . . . . Garrison Access . | . . . . . . . Terminal Hacks 22 | . 2 . 19 1 . . Record 21 | . 1 . 19 1 . . Emergency Access Points 1 | . 1 . . . . . Fabricator Hacks . | . . . . . . . Repair Station Hacks . | . . . . . . . Recycling Unit Hacks . | . . . . . . . Scanalyzer . | . . . . . . . Garrison Access Hacks . | . . . . . . . Unauthorized Hacks . | . . . . . . . Terminals . | . . . . . . . Fabricators . | . . . . . . . Repair Stations . | . . . . . . . Recycling Units . | . . . . . . . Scanalyzers . | . . . . . . . Garrison Access . | . . . . . . . Data Cores Recovered . | . . . . . . . Used . | . . . . . . . Hacking Detections 1 | . . . . 1 . . Full Trace Events 1 | . . . . 1 . . Feedback Events . | . . . . . . . Feedback Blocked . | . . . . . . . Robot Schematics Acquired . | . . . . . . . Robots Built . | . . . . . . . Authchips . | . . . . . . . Time . | . . . . . . . Total Robot Build Rating . | . . . . . . . Part Schematics Acquired . | . . . . . . . Parts Built . | . . . . . . . Authchips . | . . . . . . . Time . | . . . . . . . Total Part Build Rating . | . . . . . . . Parts Repaired . | . . . . . . . Time . | . . . . . . . Parts Recycled . | . . . . . . . Recycled Matter . | . . . . . . . Retrieved Matter . | . . . . . . . Retrieved Components . | . . . . . . . Parts Scanalyzed . | . . . . . . . Part Schematics Acquired . | . . . . . . . Parts Damaged . | . . . . . . . Bothacking | -11 -10 -10 -7 -5 -5 -5 ------------ Run | Yrd Mat Sub Scr Fac Upp Upp Used RIF Installer . | . . . . . . . Robots Hacked . | . . . . . . . Non-combat . | . . . . . . . Combat . | . . . . . . . Robot Hacks Applied . | . . . . . . . Relay Couplers Released . | . . . . . . . Fabnet Peak Effective % . | . . . . . . . Robots Rewired . | . . . . . . . Allies Hacked . | . . . . . . . Hacks Repelled . | . . . . . . . Allies | -11 -10 -10 -7 -5 -5 -5 -------- Run | Yrd Mat Sub Scr Fac Upp Upp Total Allies . | . . . . . . . Largest Group . | . . . . . . . Highest-Rated Group . | . . . . . . . Highest-Rated Ally . | . . . . . . . Total Orders . | . . . . . . . Ally Attacks . | . . . . . . . Total Damage . | . . . . . . . Kills . | . . . . . . . Allies Corrupted . | . . . . . . . Allies Melted . | . . . . . . . Intel | -11 -10 -10 -7 -5 -5 -5 ------- Run | Yrd Mat Sub Scr Fac Upp Upp Active Infowar (turns) 72 | . . . . 72 . . IFF 72 | . . . . 72 . . Robot Analysis Total . | . . . . . . . Derelict Logs Recovered 8 | . . . 4 . 2 2 Drone Launches . | . . . . . . . Drone Recoveries . | . . . . . . . Exploration | -11 -10 -10 -7 -5 -5 -5 ------------- Run | Yrd Mat Sub Scr Fac Upp Upp Turns Passed 3174 | 90 683 255 1051 505 474 116 Spaces Moved 2809 | 49 354 166 923 219 866 232 Core 1082 | 7 . . . . 843 232 Treads 452 | 42 354 56 . . . . Legs 318 | . . . 243 75 . . Wheels 794 | . . 110 680 4 . . Hover 153 | . . . . 130 23 . Flight 10 | . . . . 10 . . Fastest Speed 50 | 50 160 110 95 110 50 50 Average Speed 101 | 144 160 126 112 173 54 50 Slowest Speed 520 | 160 160 160 125 520 450 50 Overloaded Moves . | . . . . . . . Propulsion Burnouts . | . . . . . . . Robots Hopped . | . . . . . . . Potential Cave-ins . | . . . . . . . Cave-ins Triggered . | . . . . . . . Exploration Rate (%) 37 | 4 57 12 59 7 86 38 Regions Visited 6 Branch Regions 4 Pre-discovered Areas 3 | . . . 3 . . . Known Exits Taken . | . . . . . . . Unknown Exits Taken 6 | 1 1 1 1 1 1 . Scrap Searched 8 | . . . 5 . 3 . Spaces Dug . | . . . . . . . Terrain Destroyed . | . . . . . . . Melee . | . . . . . . . Projectile . | . . . . . . . AOE . | . . . . . . . Terrain Rammed . | . . . . . . . Walls Destroyed . | . . . . . . . Machines Disabled . | . . . . . . . Actions | -11 -10 -10 -7 -5 -5 -5 --------- Run | Yrd Mat Sub Scr Fac Upp Upp Total 2995 | 62 405 202 939 285 870 232 Wait 32 | . 3 12 1 12 4 . Move 2803 | 48 353 165 922 218 865 232 Hop . | . . . . . . . Pick Up 27 | 5 7 6 4 4 1 . Fast Attach 12 | 6 . 1 1 4 . . Attach 12 | 1 . 1 . 10 . . Detach 2 | . . . . 2 . . Swap 11 | . 4 3 4 . . . Drop 17 | . 2 8 7 . . . Fire 79 | 2 36 6 . 35 . . Melee . | . . . . . . . Ram . | . . . . . . . Kick . | . . . . . . . Crush . | . . . . . . . Escape Stasis . | . . . . . . . Rewire . | . . . . . . . Trap . | . . . . . . . Miscellaneous . | . . . . . . . Route ------- -11/Scrapyard -10/Materials (discovered 3 exits: [*Mat] / [*Min] / [*Sub]) -10/Subcaves -7/Scraptown -5/Factory -5/Upper Caves -5/Upper Caves History --------- Turn | Location | Event 27 | -11/Scrapyard | Discovered new exit (range 15) 91 | -11/Scrapyard | Entered Materials 312 | -10/Materials | Build established: Mutant 506 | -10/Materials | Discovered new exit (range 9) 652 | -10/Materials | Discovered new exit (range 10) 750 | -10/Materials | Discovered new exit (range 10) 774 | -10/Materials | Entered Subcaves 775 | -10/Subcaves | Approached by a straggling Scientist 807 | -10/Subcaves | Shifting Twisted Machinery released Humpback 807 | -10/Subcaves | Shifting Twisted Machinery released Sub. Monowheel 849 | -10/Subcaves | A swath of the cavern ceiling suddenly collapsed 849 | -10/Subcaves | Ambushed by swarm of Subdwellers 1028 | -10/Subcaves | Scientist uncovered a shortcut to Scraptown 1029 | -10/Subcaves | Entered Scraptown 1342 | -7/Scraptown | Visited UFD Registry 1373 | -7/Scraptown | Visited SPCMW 1408 | -7/Scraptown | Visited Comm Corps 1478 | -7/Scraptown | Heard Great Nut preacher, LISTEN AND RECITE! 1483 | -7/Scraptown | Visited CPS Storage 1507 | -7/Scraptown | Visited IN-MT5's Study 1548 | -7/Scraptown | Scanned Subdweller tech in exchange for log data 1550 | -7/Scraptown | Learned location of Armory (-4) 1551 | -7/Scraptown | Learned location of 1 exit from Research 1553 | -7/Scraptown | Learned location of Warlord (-5) 1554 | -7/Scraptown | Learned location of Quarantine (-3) 1572 | -7/Scraptown | Discovered new exit (range 5) 1948 | -7/Scraptown | Visited Fellowship of the Rings 1977 | -7/Scraptown | Visited Cyclists 2012 | -7/Scraptown | Visited Shadow of the Wyrm 2080 | -7/Scraptown | Entered Factory 2080 | -5/Factory | Evolved 10 slots: Power x1, Propulsion x2, Utility x6, Weapon x1 2248 | -5/Factory | Lost 7 parts (2p1n2u2w) 2578 | -5/Factory | Discovered new exit (range 6) 2585 | -5/Factory | Entered Upper Caves 2601 | -5/Upper Caves | Learned Factory garrison access intel 2616 | -5/Upper Caves | Spotted B-75 Beast 2635 | -5/Upper Caves | Released all parts (3) 2665 | -5/Upper Caves | Lost 6 parts (2n1u3w) 2727 | -5/Upper Caves | Attracted the attention of an 0b10 checkpoint 2736 | -5/Upper Caves | Learned location of 1 exit from Proximity Caves 2789 | -5/Upper Caves | Attracted the attention of an 0b10 outpost 2789 | -5/Upper Caves | Core integrity fell below 50% 2910 | -5/Upper Caves | Core integrity fell below 20% 3038 | -5/Upper Caves | Discovered new exit (range 10) 3059 | -5/Upper Caves | Entered another Upper Caves area 3090 | -5/Upper Caves | Learned Factory emergency access door positions 3135 | -5/Upper Caves | Spotted B-75 Beast 3141 | -5/Upper Caves | Encountered a Warlord checkpoint 3171 | -5/Upper Caves | Learned 4 Factory zone layouts 3175 | -5/Upper Caves | Destroyed by H-66 Slayer with Gauss Rifle Last Messages --------------- 02832_ System corrupted: Substantial component data lost. 02841_ 9G-QD9(k) breaks down the debris. 02847_ 4K-PY0(k) breaks down the debris. [Achievement: Slippery One] 02904_ Critical hit (Meltdown: +310). 02920_ Slug penetrates Wall. 02928_ System corrupted: Heat flow error (+275). 02999_ System corrupted: Energy discharge (-30). 03038_ EXIT=FOUND 03059_ Critical hit (Burn: +37). LOCATION=UNKNOWN GOAL=ESCAPE 03090_ Acquired derelict log, extracted data. Data stored: Factory emergency access points. 03122_ System corrupted: Energy discharge (-29). 03141_ OR-UIA(M): "You haven't seen any Assembled, have you?" 03171_ PJ